[Event "January 2 Late 2024"]
[Site "https://www.chess.com"]
[Date "2024.01.02"]
[Round "4"]
[White "Rastbod, Ali"]
[Black "Leenhouts, Koen"]
[Result "1/2-1/2"]
[Board "68"]
[TimeControl "180+1"]
[WhiteFideId "12567477"]
[BlackFideId "1008439"]
[WhiteElo "2722"]
[BlackElo "2523"]
[WhiteTeam "IRI"]
[BlackTeam "NED"]
[WhiteClock "0:00:12"]
[BlackClock "0:00:09"]

1. e4 {[%clk 0:02:55]}  e6 {[%clk 0:03:00]} 2. d4 {[%clk 0:02:51]}  d5 {[%clk 0:03:01]} 3. Bd3 {[%clk 0:02:51]}  c5 {[%clk 0:02:59]} 4. exd5 {[%clk 0:02:51]}  exd5 {[%clk 0:02:57]} 5. Nf3 {[%clk 0:02:51]}  c4 {[%clk 0:02:56]} 6. Be2 {[%clk 0:02:51]}  Nf6 {[%clk 0:02:57]} 7. b3 {[%clk 0:02:51]}  cxb3 {[%clk 0:02:55]} 8. axb3 {[%clk 0:02:52]}  Bd6 {[%clk 0:02:55]} 9. O-O {[%clk 0:02:51]}  O-O {[%clk 0:02:56]} 10. c4 {[%clk 0:02:52]}  h6 {[%clk 0:02:51]} 11. Nc3 {[%clk 0:02:52]}  Nc6 {[%clk 0:02:49]} 12. h3 {[%clk 0:02:52]}  Bf5 {[%clk 0:02:45]} 13. Bd3 {[%clk 0:02:48]}  Qd7 {[%clk 0:02:24]} 14. Bxf5 {[%clk 0:02:44]}  Qxf5 {[%clk 0:02:23]} 15. Ba3 {[%clk 0:02:44]}  Bxa3 {[%clk 0:02:19]} 16. Rxa3 {[%clk 0:02:45]}  Rad8 {[%clk 0:02:12]} 17. c5 {[%clk 0:02:11]}  Ne4 {[%clk 0:02:11]} 18. Na2 {[%clk 0:01:45]}  Rfe8 {[%clk 0:02:00]} 19. b4 {[%clk 0:01:44]}  a6 {[%clk 0:02:01]} 20. Qd3 {[%clk 0:01:44]}  Re6 {[%clk 0:01:44]} 21. b5 {[%clk 0:01:39]}  axb5 {[%clk 0:01:43]} 22. Qxb5 {[%clk 0:01:39]}  Rd7 {[%clk 0:01:20]} 23. Nb4 {[%clk 0:01:00]}  Kh7 {[%clk 0:01:19]} 24. Nxc6 {[%clk 0:00:57]}  bxc6 {[%clk 0:01:20]} 25. Qb8 {[%clk 0:00:58]}  Rde7 {[%clk 0:00:47]} 26. Ra8 {[%clk 0:00:52]}  Re8 {[%clk 0:00:43]} 27. Qxe8 {[%clk 0:00:52]}  Rxe8 {[%clk 0:00:43]} 28. Rxe8 {[%clk 0:00:53]}  f6 {[%clk 0:00:32]} 29. Ra1 {[%clk 0:00:49]}  Qf4 {[%clk 0:00:25]} 30. Re6 {[%clk 0:00:44]}  Nd2 {[%clk 0:00:21]} 31. Nxd2 {[%clk 0:00:38]}  Qxd2 {[%clk 0:00:22]} 32. Rxc6 {[%clk 0:00:37]}  Qxd4 {[%clk 0:00:22]} 33. Rf1 {[%clk 0:00:36]}  Qc3 {[%clk 0:00:20]} 34. Rc8 {[%clk 0:00:29]}  d4 {[%clk 0:00:20]} 35. c6 {[%clk 0:00:30]}  d3 {[%clk 0:00:20]} 36. c7 {[%clk 0:00:31]}  d2 {[%clk 0:00:20]} 37. Rd8 {[%clk 0:00:31]}  Qxc7 {[%clk 0:00:20]} 38. Rxd2 {[%clk 0:00:32]}  Qc3 {[%clk 0:00:20]} 39. Rfd1 {[%clk 0:00:31]}  h5 {[%clk 0:00:20]} 40. Rd3 {[%clk 0:00:30]}  Qc2 {[%clk 0:00:20]} 41. Rd5 {[%clk 0:00:31]}  Kh6 {[%clk 0:00:19]} 42. R5d2 {[%clk 0:00:29]}  Qc3 {[%clk 0:00:19]} 43. h4 {[%clk 0:00:30]}  Qb4 {[%clk 0:00:18]} 44. g3 {[%clk 0:00:30]}  Qb6 {[%clk 0:00:18]} 45. Kh2 {[%clk 0:00:30]}  Qc5 {[%clk 0:00:17]} 46. Rd4 {[%clk 0:00:30]}  Qc2 {[%clk 0:00:17]} 47. R1d2 {[%clk 0:00:31]}  Qf5 {[%clk 0:00:17]} 48. Rf4 {[%clk 0:00:31]}  Qc5 {[%clk 0:00:18]} 49. Rd3 {[%clk 0:00:27]}  Qe5 {[%clk 0:00:17]} 50. Re3 {[%clk 0:00:27]}  Qc5 {[%clk 0:00:17]} 51. Ref3 {[%clk 0:00:27]}  Qc1 {[%clk 0:00:18]} 52. Kg2 {[%clk 0:00:26]}  Qe1 {[%clk 0:00:18]} 53. Re3 {[%clk 0:00:27]}  Qc1 {[%clk 0:00:18]} 54. Kh2 {[%clk 0:00:27]}  Qc6 {[%clk 0:00:18]} 55. Rfe4 {[%clk 0:00:25]}  Qc1 {[%clk 0:00:19]} 56. Re2 {[%clk 0:00:25]}  Qf1 {[%clk 0:00:19]} 57. Re8 {[%clk 0:00:25]}  Kg6 {[%clk 0:00:19]} 58. Ra2 {[%clk 0:00:23]}  Kf7 {[%clk 0:00:18]} 59. Re3 {[%clk 0:00:19]}  Kg6 {[%clk 0:00:18]} 60. f3 {[%clk 0:00:13]}  Kh6 {[%clk 0:00:17]} 61. Rea3 {[%clk 0:00:08]}  Kg6 {[%clk 0:00:17]} 62. Rb2 {[%clk 0:00:07]}  Kh6 {[%clk 0:00:16]} 63. Rba2 {[%clk 0:00:06]}  Kg6 {[%clk 0:00:16]} 64. Re3 {[%clk 0:00:06]}  Kh6 {[%clk 0:00:16]} 65. Rg2 {[%clk 0:00:07]}  Kg6 {[%clk 0:00:15]} 66. g4 {[%clk 0:00:07]}  hxg4 {[%clk 0:00:13]} 67. fxg4 {[%clk 0:00:08]}  Qf4+ {[%clk 0:00:12]} 68. Reg3 {[%clk 0:00:08]}  Kh6 {[%clk 0:00:12]} 69. Kh3 {[%clk 0:00:09]}  g5 {[%clk 0:00:10]} 70. hxg5+ {[%clk 0:00:09]}  Kxg5 {[%clk 0:00:09]} 71. Rg1 {[%clk 0:00:04]}  Qf2 {[%clk 0:00:08]} 72. R1g2 {[%clk 0:00:02]}  Qf1 {[%clk 0:00:08]} 73. Kh2 {[%clk 0:00:03]}  Kg6 {[%clk 0:00:07]} 74. Rh3 {[%clk 0:00:03]}  Qe1 {[%clk 0:00:06]} 75. g5 {[%clk 0:00:03]}  f5 {[%clk 0:00:06]} 76. Rh6+ {[%clk 0:00:03]}  Kg7 {[%clk 0:00:06]} 77. Rh3 {[%clk 0:00:03]}  Qe5+ {[%clk 0:00:07]} 78. Kg1 {[%clk 0:00:03]}  Qd4+ {[%clk 0:00:06]} 79. Rf2 {[%clk 0:00:01]}  Qg4+ {[%clk 0:00:06]} 80. Kh2 {[%clk 0:00:02]}  Qe4 {[%clk 0:00:05]} 81. Rg3 {[%clk 0:00:02]}  Kg6 {[%clk 0:00:05]} 82. Kg1 {[%clk 0:00:02]}  Qe1+ {[%clk 0:00:04]} 83. Kg2 {[%clk 0:00:02]}  Qe4+ {[%clk 0:00:05]} 84. Rgf3 {[%clk 0:00:03]}  Qg4+ {[%clk 0:00:05]} 85. Kf1 {[%clk 0:00:03]}  Qc4+ {[%clk 0:00:05]} 86. Kg1 {[%clk 0:00:04]}  Qg4+ {[%clk 0:00:05]} 87. Kh2 {[%clk 0:00:04]}  Qh4+ {[%clk 0:00:05]} 88. Kg2 {[%clk 0:00:05]}  Qg4+ {[%clk 0:00:06]} 89. Rg3 {[%clk 0:00:06]}  Qe4+ {[%clk 0:00:06]} 90. Kg1 {[%clk 0:00:06]}  Qd4 {[%clk 0:00:06]} 91. Kf1 {[%clk 0:00:06]}  Qd1+ {[%clk 0:00:06]} 92. Kg2 {[%clk 0:00:06]}  Qd5+ {[%clk 0:00:07]} 93. Rgf3 {[%clk 0:00:07]}  Qe4 {[%clk 0:00:07]} 94. Kf1 {[%clk 0:00:07]}  Qc4+ {[%clk 0:00:07]} 95. Ke1 {[%clk 0:00:08]}  Qe4+ {[%clk 0:00:07]} 96. Kd2 {[%clk 0:00:08]}  Qd4+ {[%clk 0:00:07]} 97. Kc2 {[%clk 0:00:09]}  Qc4+ {[%clk 0:00:08]} 98. Kb2 {[%clk 0:00:08]}  Qb4+ {[%clk 0:00:07]} 99. Ka1 {[%clk 0:00:09]}  Qa4+ {[%clk 0:00:07]} 100. Kb1 {[%clk 0:00:10]}  Qb4+ {[%clk 0:00:07]} 101. Kc1 {[%clk 0:00:10]}  Qc4+ {[%clk 0:00:08]} 102. Kd1 {[%clk 0:00:11]}  Qd4+ {[%clk 0:00:08]} 103. Ke1 {[%clk 0:00:12]}  Qe4+ {[%clk 0:00:08]} 104. Kf1 {[%clk 0:00:12]}  Qc4+ {[%clk 0:00:09]} 1/2-1/2

[Event "January 2 Late 2024"]
[Site "https://www.chess.com"]
[Date "2024.01.02"]
[Round "4"]
[White "Koellner, Ruben Gideon"]
[Black "Baches Garcia, Guillermo"]
[Result "1-0"]
[Board "69"]
[TimeControl "180+1"]
[WhiteFideId "12993093"]
[BlackFideId "2209764"]
[WhiteElo "2722"]
[BlackElo "2522"]
[WhiteTeam "GER"]
[BlackTeam "ESP"]
[WhiteClock "0:00:29"]
[BlackClock "0:00:00"]

1. d4 {[%clk 0:02:58]}  d5 {[%clk 0:02:57]} 2. Nf3 {[%clk 0:02:57]}  e6 {[%clk 0:02:58]} 3. Nbd2 {[%clk 0:02:52]}  c5 {[%clk 0:02:56]} 4. e3 {[%clk 0:02:50]}  Nf6 {[%clk 0:02:54]} 5. c3 {[%clk 0:02:50]}  b6 {[%clk 0:02:51]} 6. Ne5 {[%clk 0:02:48]}  a6 {[%clk 0:02:20]} 7. f4 {[%clk 0:02:45]}  Bd6 {[%clk 0:02:18]} 8. Bd3 {[%clk 0:02:45]}  Bb7 {[%clk 0:02:16]} 9. Qf3 {[%clk 0:02:44]}  Nbd7 {[%clk 0:02:14]} 10. O-O {[%clk 0:02:44]}  Qc7 {[%clk 0:02:14]} 11. a4 {[%clk 0:02:41]}  O-O {[%clk 0:02:07]} 12. g3 {[%clk 0:02:41]}  Ne8 {[%clk 0:01:56]} 13. Qh5 {[%clk 0:02:23]}  g6 {[%clk 0:01:51]} 14. Qh3 {[%clk 0:02:23]}  Ng7 {[%clk 0:01:47]} 15. g4 {[%clk 0:02:21]}  f5 {[%clk 0:01:31]} 16. Ndf3 {[%clk 0:02:11]}  b5 {[%clk 0:01:22]} 17. axb5 {[%clk 0:01:56]}  axb5 {[%clk 0:01:22]} 18. Rxa8 {[%clk 0:01:56]}  Bxa8 {[%clk 0:01:20]} 19. Bxb5 {[%clk 0:01:51]}  Nxe5 {[%clk 0:01:16]} 20. Nxe5 {[%clk 0:01:32]}  Bxe5 {[%clk 0:01:11]} 21. fxe5 {[%clk 0:01:32]}  c4 {[%clk 0:01:07]} 22. Ba4 {[%clk 0:01:30]}  Bc6 {[%clk 0:00:59]} 23. Bc2 {[%clk 0:01:28]}  Qd7 {[%clk 0:00:51]} 24. Qg2 {[%clk 0:01:15]}  Ba4 {[%clk 0:00:48]} 25. Bb1 {[%clk 0:01:14]}  fxg4 {[%clk 0:00:38]} 26. Rxf8+ {[%clk 0:01:11]}  Kxf8 {[%clk 0:00:39]} 27. Qxg4 {[%clk 0:01:06]}  Qf7 {[%clk 0:00:39]} 28. e4 {[%clk 0:00:55]}  h5 {[%clk 0:00:28]} 29. Qf4 {[%clk 0:00:51]}  Qxf4 {[%clk 0:00:20]} 30. Bxf4 {[%clk 0:00:52]}  Bc6 {[%clk 0:00:18]} 31. exd5 {[%clk 0:00:50]}  Bxd5 {[%clk 0:00:19]} 32. Bxg6 {[%clk 0:00:50]}  h4 {[%clk 0:00:15]} 33. Bh6 {[%clk 0:00:48]}  Kg8 {[%clk 0:00:14]} 34. Bxg7 {[%clk 0:00:46]}  Kxg7 {[%clk 0:00:15]} 35. Bc2 {[%clk 0:00:45]}  Kh6 {[%clk 0:00:15]} 36. Kf2 {[%clk 0:00:45]}  Kg5 {[%clk 0:00:16]} 37. Bd1 {[%clk 0:00:36]}  Kf4 {[%clk 0:00:17]} 38. Bh5 {[%clk 0:00:34]}  Bc6 {[%clk 0:00:15]} 39. Bd1 {[%clk 0:00:30]}  Bd5 {[%clk 0:00:15]} 40. Be2 {[%clk 0:00:30]}  Kg5 {[%clk 0:00:06]} 41. Ke3 {[%clk 0:00:29]}  h3 {[%clk 0:00:00]} 42. Bf3 {[%clk 0:00:29]} 1-0

[Event "January 2 Late 2024"]
[Site "https://www.chess.com"]
[Date "2024.01.02"]
[Round "4"]
[White "Osmak, Yuliia"]
[Black "Yarar, Bora"]
[Result "0-1"]
[Board "70"]
[TimeControl "180+1"]
[WhiteFideId "14101602"]
[BlackFideId "34588400"]
[WhiteElo "2522"]
[BlackElo "2722"]
[WhiteTeam "UKR"]
[BlackTeam "TUR"]
[WhiteClock "0:00:05"]
[BlackClock "0:00:57"]

1. e4 {[%clk 0:03:00]}  e6 {[%clk 0:02:57]} 2. d4 {[%clk 0:03:00]}  d5 {[%clk 0:02:58]} 3. exd5 {[%clk 0:03:00]}  exd5 {[%clk 0:02:58]} 4. Nf3 {[%clk 0:02:59]}  Nc6 {[%clk 0:02:58]} 5. Bd3 {[%clk 0:02:58]}  Bg4 {[%clk 0:02:59]} 6. c3 {[%clk 0:02:55]}  Bd6 {[%clk 0:02:57]} 7. O-O {[%clk 0:02:55]}  Nge7 {[%clk 0:02:50]} 8. Re1 {[%clk 0:02:54]}  Qd7 {[%clk 0:02:43]} 9. Nbd2 {[%clk 0:02:50]}  O-O-O {[%clk 0:02:43]} 10. b4 {[%clk 0:02:47]}  Ng6 {[%clk 0:02:43]} 11. b5 {[%clk 0:02:33]}  Nce7 {[%clk 0:02:42]} 12. Qa4 {[%clk 0:02:32]}  Kb8 {[%clk 0:02:42]} 13. Ne5 {[%clk 0:02:25]}  Bxe5 {[%clk 0:02:21]} 14. dxe5 {[%clk 0:02:26]}  f6 {[%clk 0:02:21]} 15. exf6 {[%clk 0:02:20]}  gxf6 {[%clk 0:02:20]} 16. Nb3 {[%clk 0:02:17]}  Ne5 {[%clk 0:02:11]} 17. Nc5 {[%clk 0:02:12]}  Qd6 {[%clk 0:02:00]} 18. Be3 {[%clk 0:02:11]}  Nc8 {[%clk 0:01:58]} 19. Bf1 {[%clk 0:02:03]}  Rhg8 {[%clk 0:01:55]} 20. Kh1 {[%clk 0:01:56]}  Nb6 {[%clk 0:01:50]} 21. Qf4 {[%clk 0:01:51]}  Bc8 {[%clk 0:01:45]} 22. Bd4 {[%clk 0:01:43]}  Rde8 {[%clk 0:01:40]} 23. a4 {[%clk 0:01:33]}  Rg4 {[%clk 0:01:40]} 24. Qh6 {[%clk 0:01:29]}  Rg6 {[%clk 0:01:36]} 25. Qxh7 {[%clk 0:01:20]}  Rgg8 {[%clk 0:01:29]} 26. a5 {[%clk 0:01:03]}  Rh8 {[%clk 0:01:24]} 27. Bxe5 {[%clk 0:00:20]}  fxe5 {[%clk 0:01:24]} 28. Qc2 {[%clk 0:00:18]}  e4 {[%clk 0:01:24]} 29. g3 {[%clk 0:00:16]}  Qxc5 {[%clk 0:01:11]} 30. axb6 {[%clk 0:00:15]}  Qxb6 {[%clk 0:01:12]} 31. Ra4 {[%clk 0:00:13]}  Ref8 {[%clk 0:01:03]} 32. Kg1 {[%clk 0:00:14]}  Rxh2 {[%clk 0:01:01]} 33. Re3 {[%clk 0:00:09]}  Qxe3 {[%clk 0:00:58]} 34. fxe3 {[%clk 0:00:05]}  Rxc2 {[%clk 0:00:57]} 0-1

[Event "January 2 Late 2024"]
[Site "https://www.chess.com"]
[Date "2024.01.02"]
[Round "4"]
[White "Rakitin, Daniil"]
[Black "Makaraci, Tunahan"]
[Result "1-0"]
[Board "74"]
[TimeControl "180+1"]
[WhiteFideId "24219762"]
[BlackFideId "6356559"]
[WhiteElo "2712"]
[BlackElo "2519"]
[WhiteTeam "RUS"]
[BlackTeam "TUR"]
[WhiteClock "0:00:06"]
[BlackClock "0:00:00"]

1. e4 {[%clk 0:03:00]}  c5 {[%clk 0:02:59]} 2. Nf3 {[%clk 0:03:00]}  Nc6 {[%clk 0:02:59]} 3. Bb5 {[%clk 0:03:00]}  d6 {[%clk 0:02:59]} 4. O-O {[%clk 0:03:00]}  Bd7 {[%clk 0:03:00]} 5. Re1 {[%clk 0:03:00]}  Nf6 {[%clk 0:03:00]} 6. c3 {[%clk 0:03:00]}  a6 {[%clk 0:03:00]} 7. Bf1 {[%clk 0:03:01]}  Bg4 {[%clk 0:03:00]} 8. h3 {[%clk 0:03:00]}  Bxf3 {[%clk 0:03:00]} 9. Qxf3 {[%clk 0:03:01]}  e6 {[%clk 0:02:57]} 10. Rd1 {[%clk 0:03:01]}  d5 {[%clk 0:02:52]} 11. exd5 {[%clk 0:03:02]}  Nxd5 {[%clk 0:02:51]} 12. Na3 {[%clk 0:02:59]}  Be7 {[%clk 0:02:48]} 13. Nc2 {[%clk 0:02:59]}  O-O {[%clk 0:02:47]} 14. d4 {[%clk 0:02:59]}  cxd4 {[%clk 0:02:47]} 15. Nxd4 {[%clk 0:03:00]}  Nxd4 {[%clk 0:02:47]} 16. Rxd4 {[%clk 0:03:01]}  Bf6 {[%clk 0:02:39]} 17. Rd1 {[%clk 0:02:56]}  Qc7 {[%clk 0:02:33]} 18. Bd3 {[%clk 0:02:50]}  Rad8 {[%clk 0:02:19]} 19. Be4 {[%clk 0:01:49]}  Qc4 {[%clk 0:02:03]} 20. Bd2 {[%clk 0:01:17]}  b5 {[%clk 0:01:49]} 21. Bd3 {[%clk 0:01:09]}  Qc5 {[%clk 0:01:45]} 22. Qe4 {[%clk 0:01:07]}  g6 {[%clk 0:01:43]} 23. Rac1 {[%clk 0:01:06]}  Bg7 {[%clk 0:01:32]} 24. Qf3 {[%clk 0:00:57]}  Nb6 {[%clk 0:01:06]} 25. b3 {[%clk 0:00:37]}  Rd7 {[%clk 0:00:57]} 26. Be3 {[%clk 0:00:36]}  Qc7 {[%clk 0:00:57]} 27. c4 {[%clk 0:00:30]}  bxc4 {[%clk 0:00:53]} 28. Bxc4 {[%clk 0:00:31]}  Rxd1+ {[%clk 0:00:51]} 29. Qxd1 {[%clk 0:00:31]}  Nxc4 {[%clk 0:00:49]} 30. Rxc4 {[%clk 0:00:32]}  Qb7 {[%clk 0:00:46]} 31. Qd6 {[%clk 0:00:23]}  h5 {[%clk 0:00:38]} 32. Qc6 {[%clk 0:00:16]}  Qb5 {[%clk 0:00:24]} 33. Qxb5 {[%clk 0:00:16]}  axb5 {[%clk 0:00:25]} 34. Rb4 {[%clk 0:00:17]}  Ra8 {[%clk 0:00:25]} 35. a4 {[%clk 0:00:16]}  bxa4 {[%clk 0:00:25]} 36. bxa4 {[%clk 0:00:17]}  Bc3 {[%clk 0:00:21]} 37. Rc4 {[%clk 0:00:17]}  Ba5 {[%clk 0:00:20]} 38. Kf1 {[%clk 0:00:17]}  Kf8 {[%clk 0:00:20]} 39. Bg5 {[%clk 0:00:14]}  Ke8 {[%clk 0:00:15]} 40. Rd4 {[%clk 0:00:14]}  Bb6 {[%clk 0:00:14]} 41. Rf4 {[%clk 0:00:14]}  Ra5 {[%clk 0:00:10]} 42. h4 {[%clk 0:00:12]}  Bc7 {[%clk 0:00:06]} 43. Rd4 {[%clk 0:00:10]}  e5 {[%clk 0:00:06]} 44. Rb4 {[%clk 0:00:09]}  Kd7 {[%clk 0:00:06]} 45. Ke2 {[%clk 0:00:09]}  Kc6 {[%clk 0:00:06]} 46. Kd3 {[%clk 0:00:09]}  Bd6 {[%clk 0:00:06]} 47. Rc4+ {[%clk 0:00:08]}  Kd5 {[%clk 0:00:07]} 48. f3 {[%clk 0:00:09]}  f5 {[%clk 0:00:07]} 49. Be3 {[%clk 0:00:05]}  Ra8 {[%clk 0:00:03]} 50. Bb6 {[%clk 0:00:05]}  Rb8 {[%clk 0:00:04]} 51. a5 {[%clk 0:00:05]}  Ra8 {[%clk 0:00:04]} 52. Ra4 {[%clk 0:00:01]}  Ra6 {[%clk 0:00:03]} 53. Rc4 {[%clk 0:00:02]}  e4+ {[%clk 0:00:04]} 54. fxe4+ {[%clk 0:00:03]}  fxe4+ {[%clk 0:00:04]} 55. Rxe4 {[%clk 0:00:04]}  Ra8 {[%clk 0:00:03]} 56. Rd4+ {[%clk 0:00:04]}  Ke6 {[%clk 0:00:03]} 57. Rc4 {[%clk 0:00:04]}  Kd5 {[%clk 0:00:03]} 58. Rd4+ {[%clk 0:00:05]}  Ke6 {[%clk 0:00:04]} 59. g4 {[%clk 0:00:05]}  Rf8 {[%clk 0:00:03]} 60. gxh5 {[%clk 0:00:05]}  gxh5 {[%clk 0:00:03]} 61. Kc4 {[%clk 0:00:06]}  Rc8+ {[%clk 0:00:03]} 62. Kb5 {[%clk 0:00:06]}  Rc1 {[%clk 0:00:03]} 63. Rc4 {[%clk 0:00:06]}  Rb1+ {[%clk 0:00:03]} 64. Kc6 {[%clk 0:00:06]}  Ra1 {[%clk 0:00:02]} 65. Kb7 {[%clk 0:00:06]}  Kd7 {[%clk 0:00:00]} 66. a6 {[%clk 0:00:06]} 1-0

[Event "January 2 Late 2024"]
[Site "https://www.chess.com"]
[Date "2024.01.02"]
[Round "4"]
[White "Estrada Nieto, Julian"]
[Black "Hamidi, Amir Mohammad"]
[Result "1-0"]
[Board "75"]
[TimeControl "180+1"]
[WhiteFideId "5101018"]
[BlackFideId "12563285"]
[WhiteElo "2518"]
[BlackElo "2708"]
[WhiteTeam "ESP"]
[BlackTeam "IRI"]
[WhiteClock "0:00:06"]
[BlackClock "0:00:00"]

1. e4 {[%clk 0:03:00]}  c5 {[%clk 0:02:59]} 2. Nf3 {[%clk 0:03:01]}  Nc6 {[%clk 0:02:59]} 3. Bb5 {[%clk 0:03:00]}  d5 {[%clk 0:02:58]} 4. exd5 {[%clk 0:02:59]}  Qxd5 {[%clk 0:02:59]} 5. Nc3 {[%clk 0:02:59]}  Qe6+ {[%clk 0:02:58]} 6. Ne2 {[%clk 0:02:50]}  a6 {[%clk 0:02:31]} 7. Bxc6+ {[%clk 0:02:50]}  Qxc6 {[%clk 0:02:31]} 8. O-O {[%clk 0:02:51]}  Nf6 {[%clk 0:02:29]} 9. d4 {[%clk 0:02:47]}  e6 {[%clk 0:02:29]} 10. c4 {[%clk 0:02:42]}  cxd4 {[%clk 0:02:24]} 11. Qxd4 {[%clk 0:02:41]}  Bc5 {[%clk 0:02:16]} 12. Qd3 {[%clk 0:02:35]}  O-O {[%clk 0:02:15]} 13. Ng3 {[%clk 0:02:28]}  b6 {[%clk 0:02:02]} 14. Ne5 {[%clk 0:02:06]}  Qc7 {[%clk 0:02:01]} 15. Re1 {[%clk 0:02:04]}  Rd8 {[%clk 0:01:56]} 16. Qe2 {[%clk 0:02:04]}  Bb7 {[%clk 0:01:51]} 17. Bg5 {[%clk 0:02:03]}  Be7 {[%clk 0:01:31]} 18. f3 {[%clk 0:01:49]}  h6 {[%clk 0:01:27]} 19. Bf4 {[%clk 0:01:36]}  Bc5+ {[%clk 0:01:13]} 20. Kh1 {[%clk 0:01:35]}  Rd4 {[%clk 0:01:13]} 21. Bd2 {[%clk 0:01:20]}  Bd6 {[%clk 0:00:27]} 22. Bc3 {[%clk 0:01:17]}  Bxe5 {[%clk 0:00:25]} 23. Qxe5 {[%clk 0:01:15]}  Qxe5 {[%clk 0:00:25]} 24. Rxe5 {[%clk 0:01:15]}  Rxc4 {[%clk 0:00:25]} 25. Rd1 {[%clk 0:01:10]}  Rcc8 {[%clk 0:00:22]} 26. Ree1 {[%clk 0:01:06]}  Rd8 {[%clk 0:00:20]} 27. Bd4 {[%clk 0:01:01]}  Nd5 {[%clk 0:00:17]} 28. Ne4 {[%clk 0:00:59]}  Rac8 {[%clk 0:00:13]} 29. Nc3 {[%clk 0:00:59]}  b5 {[%clk 0:00:12]} 30. Kg1 {[%clk 0:00:55]}  b4 {[%clk 0:00:12]} 31. Ne4 {[%clk 0:00:49]}  Rc2 {[%clk 0:00:09]} 32. Nc5 {[%clk 0:00:35]}  Ba8 {[%clk 0:00:07]} 33. Nxa6 {[%clk 0:00:33]}  Nf4 {[%clk 0:00:06]} 34. Nxb4 {[%clk 0:00:26]}  Rxg2+ {[%clk 0:00:05]} 35. Kf1 {[%clk 0:00:22]}  Bxf3 {[%clk 0:00:04]} 36. Rc1 {[%clk 0:00:12]}  Rxd4 {[%clk 0:00:03]} 37. Rc3 {[%clk 0:00:10]}  Ba8 {[%clk 0:00:02]} 38. Nc2 {[%clk 0:00:08]}  Rdd2 {[%clk 0:00:00]} 39. Rc8+ {[%clk 0:00:06]} 1-0

[Event "January 2 Late 2024"]
[Site "https://www.chess.com"]
[Date "2024.01.02"]
[Round "4"]
[White "Tifferet, Shakked"]
[Black "Nazari, Arad"]
[Result "1/2-1/2"]
[Board "79"]
[TimeControl "180+1"]
[WhiteFideId "2811529"]
[BlackFideId "12577324"]
[WhiteElo "2512"]
[BlackElo "2698"]
[WhiteTeam "ISR"]
[BlackTeam "IRI"]
[WhiteClock "0:00:08"]
[BlackClock "0:00:06"]

1. c4 {[%clk 0:03:00]}  e5 {[%clk 0:02:56]} 2. b3 {[%clk 0:03:00]}  c5 {[%clk 0:02:48]} 3. Bb2 {[%clk 0:03:00]}  Nc6 {[%clk 0:02:49]} 4. e3 {[%clk 0:02:56]}  g6 {[%clk 0:02:49]} 5. Nc3 {[%clk 0:02:47]}  Bg7 {[%clk 0:02:45]} 6. g3 {[%clk 0:02:48]}  Nge7 {[%clk 0:02:45]} 7. Bg2 {[%clk 0:02:48]}  O-O {[%clk 0:02:46]} 8. Nge2 {[%clk 0:02:49]}  d6 {[%clk 0:02:47]} 9. O-O {[%clk 0:02:48]}  Be6 {[%clk 0:02:47]} 10. a3 {[%clk 0:02:42]}  Qd7 {[%clk 0:02:36]} 11. Re1 {[%clk 0:02:36]}  Bh3 {[%clk 0:02:34]} 12. Bh1 {[%clk 0:02:36]}  h5 {[%clk 0:02:19]} 13. Nd5 {[%clk 0:02:35]}  Nxd5 {[%clk 0:02:02]} 14. Bxd5 {[%clk 0:02:34]}  h4 {[%clk 0:02:02]} 15. Rb1 {[%clk 0:02:10]}  Ne7 {[%clk 0:02:02]} 16. Bh1 {[%clk 0:02:07]}  Rab8 {[%clk 0:01:55]} 17. d4 {[%clk 0:02:00]}  exd4 {[%clk 0:01:45]} 18. exd4 {[%clk 0:02:01]}  Bf5 {[%clk 0:01:41]} 19. Rc1 {[%clk 0:01:31]}  Nc6 {[%clk 0:01:32]} 20. Qd2 {[%clk 0:01:28]}  Rbd8 {[%clk 0:01:23]} 21. dxc5 {[%clk 0:01:16]}  dxc5 {[%clk 0:01:23]} 22. Qxd7 {[%clk 0:01:17]}  Rxd7 {[%clk 0:01:23]} 23. Bxg7 {[%clk 0:01:17]}  Kxg7 {[%clk 0:01:24]} 24. Bxc6 {[%clk 0:01:15]}  bxc6 {[%clk 0:01:24]} 25. Red1 {[%clk 0:00:58]}  Rxd1+ {[%clk 0:01:07]} 26. Rxd1 {[%clk 0:00:59]}  Bc2 {[%clk 0:01:07]} 27. Rd6 {[%clk 0:00:59]}  Re8 {[%clk 0:00:58]} 28. Nf4 {[%clk 0:00:50]}  Re1+ {[%clk 0:00:34]} 29. Kg2 {[%clk 0:00:50]}  Ra1 {[%clk 0:00:21]} 30. gxh4 {[%clk 0:00:43]}  Rxa3 {[%clk 0:00:20]} 31. h5 {[%clk 0:00:43]}  g5 {[%clk 0:00:18]} 32. h6+ {[%clk 0:00:43]}  Kh7 {[%clk 0:00:18]} 33. Nh5 {[%clk 0:00:37]}  Rxb3 {[%clk 0:00:16]} 34. Nf6+ {[%clk 0:00:33]}  Kxh6 {[%clk 0:00:17]} 35. Rxc6 {[%clk 0:00:33]}  Bg6 {[%clk 0:00:09]} 36. Rxc5 {[%clk 0:00:29]}  Kg7 {[%clk 0:00:09]} 37. Ng4 {[%clk 0:00:24]}  Be4+ {[%clk 0:00:09]} 38. Kf1 {[%clk 0:00:20]}  Bf3 {[%clk 0:00:09]} 39. Rxg5+ {[%clk 0:00:19]}  Kh7 {[%clk 0:00:07]} 40. Ke1 {[%clk 0:00:15]}  f5 {[%clk 0:00:04]} 41. Nf6+ {[%clk 0:00:12]}  Kh6 {[%clk 0:00:04]} 42. h4 {[%clk 0:00:10]}  Rd3 {[%clk 0:00:04]} 43. Ng8+ {[%clk 0:00:10]}  Kh7 {[%clk 0:00:04]} 44. Nf6+ {[%clk 0:00:11]}  Kh6 {[%clk 0:00:05]} 45. Ng8+ {[%clk 0:00:08]}  Kh7 {[%clk 0:00:06]} 46. Nf6+ {[%clk 0:00:08]}  Kh6 {[%clk 0:00:06]} 1/2-1/2

[Event "January 2 Late 2024"]
[Site "https://www.chess.com"]
[Date "2024.01.02"]
[Round "4"]
[White "Do Valle Cardoso, Lucas"]
[Black "Plotnikov, Pavel"]
[Result "1-0"]
[Board "80"]
[TimeControl "180+1"]
[WhiteFideId "2163144"]
[BlackFideId "4170342"]
[WhiteElo "2696"]
[BlackElo "2498"]
[WhiteTeam "BRA"]
[BlackTeam "RUS"]
[WhiteClock "0:00:28"]
[BlackClock "0:00:00"]

1. e4 {[%clk 0:03:00]}  e6 {[%clk 0:03:00]} 2. d4 {[%clk 0:03:00]}  d5 {[%clk 0:03:00]} 3. Nc3 {[%clk 0:03:01]}  Nf6 {[%clk 0:03:00]} 4. Bg5 {[%clk 0:03:00]}  Be7 {[%clk 0:03:00]} 5. e5 {[%clk 0:03:00]}  Nfd7 {[%clk 0:03:00]} 6. Bxe7 {[%clk 0:02:58]}  Qxe7 {[%clk 0:03:00]} 7. f4 {[%clk 0:02:59]}  O-O {[%clk 0:02:59]} 8. Nf3 {[%clk 0:02:59]}  c5 {[%clk 0:02:59]} 9. Qd2 {[%clk 0:03:00]}  Nc6 {[%clk 0:02:57]} 10. dxc5 {[%clk 0:03:00]}  Nxc5 {[%clk 0:02:51]} 11. O-O-O {[%clk 0:03:01]}  a6 {[%clk 0:02:51]} 12. Kb1 {[%clk 0:03:01]}  b5 {[%clk 0:02:51]} 13. Bd3 {[%clk 0:02:59]}  b4 {[%clk 0:02:45]} 14. Ne2 {[%clk 0:02:59]}  f6 {[%clk 0:02:43]} 15. exf6 {[%clk 0:02:53]}  Qxf6 {[%clk 0:02:43]} 16. g3 {[%clk 0:02:48]}  a5 {[%clk 0:02:42]} 17. Rhe1 {[%clk 0:02:42]}  a4 {[%clk 0:02:40]} 18. Ne5 {[%clk 0:02:17]}  Nxe5 {[%clk 0:02:22]} 19. fxe5 {[%clk 0:02:17]}  Qxe5 {[%clk 0:02:19]} 20. Nd4 {[%clk 0:02:09]}  Qd6 {[%clk 0:02:01]} 21. Qxb4 {[%clk 0:02:07]}  Bd7 {[%clk 0:01:58]} 22. Qa3 {[%clk 0:01:38]}  e5 {[%clk 0:01:49]} 23. Nb5 {[%clk 0:01:36]}  Bxb5 {[%clk 0:01:48]} 24. Bxb5 {[%clk 0:01:36]}  Kh8 {[%clk 0:01:29]} 25. Qe3 {[%clk 0:01:04]}  Rab8 {[%clk 0:01:17]} 26. c4 {[%clk 0:00:58]}  Qg6+ {[%clk 0:00:50]} 27. Ka1 {[%clk 0:00:59]}  Nb3+ {[%clk 0:00:35]} 28. axb3 {[%clk 0:00:59]}  axb3 {[%clk 0:00:36]} 29. Qxb3 {[%clk 0:00:54]}  Ra8+ {[%clk 0:00:24]} 30. Ba4 {[%clk 0:00:55]}  Rfb8 {[%clk 0:00:20]} 31. Qa2 {[%clk 0:00:50]}  dxc4 {[%clk 0:00:17]} 32. Qxc4 {[%clk 0:00:50]}  Qb6 {[%clk 0:00:15]} 33. b3 {[%clk 0:00:33]}  Qb7 {[%clk 0:00:00]} 34. Rxe5 {[%clk 0:00:28]} 1-0